bitfinex-derivatives/quotes_ETHF0:USTF0_20241129
["timestamp","ask_amount","ask_price","bid_price","bid_amount"]
[1732890516844,2.27940881,3603.0,3602.4,3.2078]
[1732890517048,0.27748,3602.5,3602.4,3.2078]
[1732890517248,0.27748,3602.5,3602.4,3.79893111]
[1732890517546,6.53140831,3602.8,3602.4,3.79893111]
[1732890517741,0.27748,3602.5,3602.4,3.2078]
[1732890518248,6.80888831,3602.5,3602.4,3.2078]
[1732890518642,0.27748,3602.5,3602.4,3.2078]
[1732890519044,2.42748,3602.5,3602.4,3.2078]
[1732890519342,0.27749,3602.4,3602.3,0.4405]
[1732890519544,4.35749,3602.4,3602.3,0.4405]
[1732890519939,4.35749,3602.4,3602.0,3.2078]
[1732890519940,4.08,3602.4,3602.0,3.2078]
[1732890520141,0.27751,3602.1,3602.0,3.2078]
[1732890520542,0.85991,3602.1,3602.0,3.2078]
[1732890523643,9.55009744,3602.1,3602.0,3.2078]
[1732890523842,0.85991,3602.1,3602.0,3.2078]
[1732890524441,9.55009744,3602.1,3602.0,3.2078]
[1732890524948,10.50309744,3602.1,3602.0,3.2078]
[1732890525940,9.92069744,3602.1,3602.0,3.2078]
[1732890526144,1.23051,3602.1,3602.0,3.2078]
[1732890526347,9.94790687,3602.1,3602.0,3.2078]
[1732890526647,1.23051,3602.1,3602.0,3.2078]
[1732890527147,1.23051,3602.1,3602.0,3.79893111]
[1732890527448,8.85846889,3602.1,3602.0,3.2078]
[1732890528145,7.90546889,3602.1,3602.0,3.2078]
[1732890528343,1.25051,3602.1,3602.0,3.79893111]
[1732890528555,8.87896746,3602.1,3602.0,3.79893111]
[1732890528951,8.60145746,3602.1,3602.0,3.79893111]
[1732890529153,1.23051,3602.1,3602.0,3.79893111]
[1732890529644,0.27751,3602.1,3602.0,3.79893111]
[1732890530350,8.58495001,3602.2,3602.0,3.79893111]
[1732890530550,6.54133485,3602.3,3602.0,8.83893111]
[1732890530751,5.45030086,3602.1,3602.0,3.83893111]
[1732890530956,6.54133485,3602.6,3602.4,0.27749]
[1732890531159,6.54133485,3602.6,3602.5,3.2078]
[1732890531349,5.91648728,3602.6,3602.5,3.2078]
[1732890531863,8.99515212,3603.1,3602.5,3.2078]
[1732890532154,4.43993588,3603.4,3602.5,3.2078]
[1732890532155,8.71740212,3603.3,3603.0,3.2078]
[1732890532449,0.27742,3603.3,3603.0,3.2078]
[1732890532852,3.29804331,3603.4,3603.0,3.2078]
[1732890533258,0.27742,3603.3,3603.0,3.2078]
[1732890533953,0.27743,3603.2,3603.0,3.2078]
[1732890535352,0.27744,3603.1,3603.0,3.2078]
[1732890535553,0.27748,3602.5,3602.4,3.2078]
[1732890535754,0.27751,3602.2,3602.0,3.2078]
[1732890535955,0.953,3602.5,3602.0,3.2078]
[1732890536251,9.8018276,3602.9,3602.5,0.27748]
[1732890536252,9.67040212,3602.9,3602.5,0.27748]
[1732890536459,1.23045,3602.9,3602.8,3.2078]
[1732890537753,9.94785212,3602.9,3602.8,3.2078]
[1732890538161,1.23045,3602.9,3602.8,3.2078]
[1732890538755,9.94785212,3602.9,3602.8,3.2078]
[1732890540255,9.94785212,3602.9,3602.6,1.2958]
[1732890540256,0.27747,3602.7,3602.6,0.5543]
[1732890541157,9.67040212,3602.9,3602.6,0.5543]
[1732890541354,9.94785212,3602.9,3602.8,3.2078]
[1732890541652,1.23045,3602.9,3602.8,3.2078]
[1732890541854,9.94785212,3602.9,3602.8,3.2078]
[1732890542061,1.23045,3602.9,3602.8,3.2078]
[1732890542260,9.94785212,3602.9,3602.8,3.2078]
[1732890542659,1.96215,3602.9,3602.8,3.2078]
[1732890543158,0.27748,3602.5,3602.4,3.2078]
[1732890543364,2.37237257,3602.5,3602.4,3.2078]
[1732890543856,10.12249863,3602.8,3602.4,3.2078]
[1732890543857,0.27747,3602.7,3602.4,3.2078]
[1732890544264,2.09489257,3602.9,3602.4,3.2078]
[1732890544460,10.00262137,3602.9,3602.8,3.2078]
[1732890544652,10.95562137,3602.9,3602.8,3.2078]
[1732890545055,10.95562137,3602.9,3602.4,3.2078]
[1732890545260,0.27748,3602.5,3602.4,3.2078]
[1732890545462,1.23048,3602.5,3602.4,3.2078]
[1732890545958,0.36259928,3602.5,3602.4,3.2078]
[1732890546164,2.73497185,3602.5,3602.4,3.2078]
[1732890546362,3.06306896,3602.5,3602.4,3.2078]
[1732890546563,3.32537257,3602.5,3602.4,3.2078]
[1732890546960,4.77097257,3602.5,3602.4,3.2078]
[1732890547171,2.67608,3602.5,3602.4,3.2078]
[1732890551961,8.47194874,3602.5,3602.4,3.2078]
[1732890552363,1.93088,3602.5,3602.4,3.2078]
[1732890552564,8.47193844,3602.5,3602.4,3.2078]
[1732890552762,9.72517137,3602.7,3602.4,3.2078]
[1732890552960,7.77024661,3602.6,3602.4,3.2078]
[1732890553367,6.81824661,3602.6,3602.4,3.2078]
[1732890553571,0.27748,3602.5,3602.4,3.2078]
[1732890553766,6.54076661,3602.6,3602.4,3.2078]
[1732890553973,6.81824661,3602.6,3602.4,3.2078]
[1732890554969,6.54076661,3602.5,3602.4,3.2078]
[1732890555973,0.27748,3602.5,3602.4,3.2078]
[1732890556271,7.6302788,3602.6,3602.0,3.2078]
[1732890556476,8.91391783,3602.1,3602.0,3.2078]
[1732890556768,2.37240257,3602.1,3602.0,3.2078]
[1732890557167,8.91411161,3602.1,3602.0,3.2078]
[1732890557369,10.00268137,3602.1,3602.0,3.2078]
[1732890557771,10.00422402,3602.1,3602.0,3.2078]
[1732890557977,2.37240257,3602.1,3602.0,3.2078]
[1732890558271,10.00417442,3602.1,3602.0,3.2078]
[1732890560179,2.37240257,3602.1,3602.0,3.2078]
[1732890560574,10.00382845,3602.1,3602.0,3.2078]
[1732890561272,10.04570038,3602.1,3602.0,3.2078]
[1732890561475,9.42075645,3602.1,3602.0,3.2078]
[1732890562172,1.78933057,3602.1,3602.0,3.2078]
[1732890563076,1.83933057,3602.1,3602.0,3.2078]
[1732890563474,1.78933057,3602.1,3602.0,3.2078]
[1732890563672,1.78933057,3602.1,3602.0,0.3844]
[1732890565582,1.51182057,3602.1,3601.6,4.8321]
[1732890565777,0.27753,3601.9,3601.6,4.8321]
[1732890565978,7.49312639,3602.0,3601.6,4.8321]
[1732890566182,1.22952,3602.0,3601.6,5.10965]
[1732890566477,5.45072299,3601.7,3601.6,5.10965]
[1732890566682,0.04187193,3601.8,3601.6,4.8321]
[1732890567082,0.31941193,3601.8,3601.6,4.8321]
[1732890567380,0.04187193,3601.7,3601.6,4.8321]
[1732890568588,0.31942193,3601.7,3601.6,3.9197]
[1732890568882,2.4143145,3601.7,3601.6,3.9197]
[1732890569084,8.95544089,3601.7,3601.6,3.9197]
[1732890569482,8.95544089,3601.7,3601.3,0.9331]
[1732890569483,0.27757,3601.4,3601.3,0.9331]
[1732890569785,0.27758,3601.3,3601.2,3.2078]
[1732890569983,1.22958,3601.3,3601.2,3.2078]
[1732890570490,1.27145193,3601.3,3601.2,3.2078]
[1732890572383,7.81257832,3601.3,3601.2,3.2078]
[1732890572583,1.27145193,3601.3,3601.2,3.2078]
[1732890573179,7.80920944,3601.3,3601.2,3.2078]
[1732890575092,1.27145193,3601.3,3601.2,3.2078]
[1732890576495,0.64636178,3601.3,3601.2,3.2078]
[1732890576690,0.92394178,3601.3,3601.2,3.2078]
[1732890579296,0.64636178,3601.3,3601.2,3.2078]
[1732890579799,0.92394178,3601.3,3601.2,3.2078]
[1732890579995,0.31945193,3601.3,3601.2,3.2078]
[1732890580305,1.27145193,3601.3,3601.2,3.2078]
[1732890583098,0.99387193,3601.3,3601.2,3.2078]
[1732890583797,1.27145193,3601.3,3601.2,3.2078]
[1732890583998,0.31945193,3601.3,3601.2,4.0818]
[1732890584203,5.48786017,3601.3,3601.2,4.35938]
[1732890584400,0.04187193,3601.3,3601.2,4.35938]
[1732890584605,6.39698824,3601.4,3601.3,0.27758]
[1732890584801,5.44598824,3601.5,3601.4,0.27757]
[1732890585303,5.44598824,3601.5,3601.3,0.8838]
[1732890585505,5.44598824,3601.5,3601.3,1.16137]
[1732890585804,5.44598824,3601.6,3601.4,0.27757]
[1732890586007,5.44598824,3601.6,3601.3,1.16137]
[1732890586200,5.44598824,3601.5,3601.3,0.8838]
[1732890586401,5.44598824,3601.5,3601.2,4.0818]
[1732890586402,5.72354824,3601.5,3601.2,4.35938]
[1732890587209,5.44598824,3601.5,3601.3,0.27757]
[1732890587498,5.44598824,3601.4,3601.3,0.27757]
[1732890587705,5.44598824,3601.4,3601.2,4.0818]
[1732890588295,5.44598824,3601.3,3601.2,4.0818]
[1732890588503,0.27756,3601.5,3601.2,4.0818]
[1732890588905,0.27757,3601.5,3601.2,4.0818]
[1732890589107,0.27757,3601.4,3601.2,4.0818]
[1732890589307,0.27757,3601.5,3601.2,4.0818]
[1732890589706,0.951,3601.6,3601.2,4.0818]
[1732890590009,0.27756,3601.5,3601.2,4.0818]
[1732890590708,0.27758,3601.3,3601.2,4.0818]
[1732890591511,7.1236862,3601.5,3601.2,4.0818]
[1732890591805,0.27758,3601.3,3601.2,4.0818]
[1732890592306,6.81533751,3601.3,3601.2,4.0818]
[1732890593711,0.27758,3601.3,3601.2,4.0818]
[1732890594105,6.81533751,3601.3,3601.2,4.0818]
[1732890594310,0.27758,3601.3,3601.2,4.0818]
[1732890598008,3.82613751,3601.5,3601.2,10.73016617]
[1732890598214,10.89091956,3602.3,3601.2,10.73016617]
[1732890598215,7.63119602,3602.5,3601.5,0.97147]
[1732890598511,0.951,3602.7,3602.4,3.48529]
[1732890598711,1.8063,3602.9,3602.4,3.2078]
[1732890598912,0.951,3603.2,3602.8,4.22616617]
[1732890599310,1.22843,3603.2,3602.8,4.22616617]
[1732890599616,0.27743,3603.3,3602.8,3.2078]
[1732890600013,1.96936617,3603.4,3602.8,3.48526]
[1732890600313,7.63119602,3603.8,3603.3,3.2078]
[1732890600612,7.63119602,3604.8,3603.7,3.2078]
[1732890600806,2.103907,3604.1,3603.3,3.2078]
[1732890601014,3.7596,3604.0,3603.3,3.2078]
[1732890601315,7.63119602,3603.9,3603.3,3.2078]
[1732890601518,0.951,3603.9,3603.3,3.2078]
[1732890601812,0.951,3603.9,3603.4,0.27741]
[1732890602018,0.951,3603.9,3603.3,3.2078]
[1732890602812,2.381307,3603.7,3603.3,3.2078]
[1732890603015,2.381307,3603.7,3602.9,3.2078]
[1732890603016,0.27741,3603.5,3602.9,3.2078]
[1732890603216,2.203907,3603.7,3602.9,3.2078]
[1732890603217,2.103907,3603.7,3602.9,3.2078]
[1732890603414,0.27742,3603.4,3602.9,3.2078]
[1732890603617,4.1588,3603.8,3603.3,3.2078]
[1732890603817,4.2288,3603.8,3603.3,3.2078]
[1732890604318,0.951,3603.7,3603.3,3.2078]
[1732890604525,3.054907,3603.7,3602.8,3.2078]
[1732890604810,3.2078,3602.9,3601.9,4.1347]
[1732890605014,2.103907,3603.1,3601.9,4.1347]
[1732890605015,3.7565,3602.8,3601.9,3.2078]
[1732890605311,3.7565,3602.8,3602.1,0.27751]
[1732890605512,3.7565,3602.8,3601.9,3.2078]
[1732890605711,1.8924,3602.8,3602.3,5.311707]
[1732890605913,0.9131,3603.4,3602.9,0.27745]
[1732890606114,0.9131,3603.4,3603.1,3.2078]
[1732890606115,0.9643,3603.4,3603.1,3.2078]
[1732890606416,0.9643,3603.4,3602.7,3.2078]
[1732890606721,0.9858,3603.3,3603.1,3.2078]
[1732890606907,0.9725,3603.6,3603.1,3.2078]
[1732890607109,0.9725,3603.6,3603.4,0.27741]
[1732890607307,0.9643,3603.9,3603.2,1.9604]
[1732890607513,0.9643,3603.9,3603.4,0.27741]
[1732890607707,0.9643,3603.9,3603.2,2.9371]
[1732890607914,0.9643,3603.9,3603.6,0.27739]
[1732890608111,0.27765823,3604.1,3604.0,0.27737]
[1732890608407,0.27765823,3604.1,3603.5,3.2078]
[1732890608609,3.12387,3604.0,3603.5,3.2078]
[1732890608814,0.9119,3603.9,3603.5,3.2078]
[1732890609022,0.27741,3603.5,3603.0,3.2078]
[1732890609212,2.103907,3603.5,3603.0,3.2078]
[1732890609915,0.27743,3603.2,3603.0,3.2078]
[1732890610220,0.9119,3603.1,3603.0,3.2078]
[1732890610416,1.8216,3603.1,3603.0,3.2078]
[1732890610619,2.09904,3603.1,3603.0,3.2078]
[1732890610916,1.8216,3603.1,3603.0,3.2078]
[1732890611114,0.27745,3603.0,3602.5,3.2078]
[1732890611320,4.886007,3603.1,3602.5,3.2078]
[1732890611516,0.2775,3602.3,3602.1,3.2078]
[1732890611814,0.2775,3602.3,3601.7,3.2078]
[1732890611815,0.27752,3602.0,3601.7,3.2078]
[1732890612114,0.27754,3601.8,3601.7,3.2078]
[1732890612315,0.951,3602.1,3600.8,4.1241]
[1732890612316,3.2078,3601.9,3600.8,4.1241]
[1732890612619,0.27756,3601.5,3600.8,4.1241]
[1732890612815,3.2078,3601.9,3600.8,4.1241]
[1732890613023,0.27757,3601.4,3600.8,4.40171]
[1732890613319,0.27756,3601.6,3600.8,4.1241]
[1732890613509,5.311707,3601.9,3600.8,4.1241]
[1732890613717,3.2078,3601.9,3601.2,3.2078]
[1732890613911,0.951,3602.1,3601.2,3.2078]
[1732890613912,0.27755,3601.7,3601.2,3.2078]
[1732890614115,2.103907,3601.9,3601.2,3.2078]
[1732890614315,0.27755,3601.7,3601.2,3.2078]
[1732890614514,0.27754,3601.8,3601.2,3.2078]
[1732890614819,2.103907,3601.9,3601.2,3.2078]
[1732890615317,0.27756,3601.6,3601.2,3.2078]
[1732890615622,2.103907,3601.9,3601.2,3.2078]
[1732890615825,5.311707,3601.9,3601.2,3.2078]
[1732890616122,5.311707,3601.5,3600.8,0.9163]
[1732890616415,2.103907,3601.0,3600.7,3.2078]
[1732890616622,9.72159165,3601.5,3601.0,0.27759]
[1732890616623,4.1988,3601.5,3601.0,0.27759]
[1732890616821,0.991,3601.5,3601.1,3.2078]
[1732890617011,0.9442,3602.2,3601.7,0.27754]
[1732890617212,0.9442,3602.2,3601.7,3.2078]
[1732890617415,0.27752,3602.0,3601.7,3.2078]
[1732890617620,0.27752,3602.1,3601.7,3.2078]
[1732890617820,0.27751,3602.1,3601.7,3.2078]
[1732890618019,0.27753,3602.0,3601.7,3.2078]
[1732890618229,2.103907,3601.9,3601.3,3.2078]
[1732890618420,0.27755,3601.7,3601.3,3.2078]
[1732890618722,2.103907,3601.9,3601.3,3.2078]
[1732890618920,0.27753,3601.9,3601.3,3.2078]
[1732890619126,0.9442,3602.2,3601.7,3.2078]
[1732890619426,0.991,3603.2,3602.5,0.27748]
[1732890619622,6.942,3603.6,3601.8,0.69385]
[1732890619623,0.27745,3602.9,3602.8,3.2078]
[1732890619823,0.27745,3602.9,3602.3,3.2078]
[1732890619824,0.27749,3602.4,3602.3,3.2078]
[1732890620023,2.103907,3602.6,3601.8,4.1771]
[1732890620233,0.991,3603.4,3602.3,3.2078]
[1732890620518,0.991,3603.4,3602.6,3.2078]
[1732890620519,2.103907,3603.1,3602.6,3.2078]
[1732890620919,2.381347,3603.1,3602.6,3.2078]
[1732890621120,2.103907,3603.1,3602.6,3.2078]
[1732890621620,2.103907,3603.1,3603.0,3.2078]
[1732890621920,4.28118527,3603.5,3602.7,0.27746]
[1732890622127,4.28118527,3603.5,3603.0,3.2078]
[1732890622128,5.33318527,3603.5,3603.0,3.2078]
[1732890622425,0.27742,3603.4,3603.0,3.2078]
[1732890622619,0.27742,3603.4,3602.6,0.27747]
[1732890622620,2.103907,3603.1,3602.6,3.2078]
[1732890622824,2.103907,3602.7,3602.6,3.2078]
[1732890623120,1.47907712,3602.7,3602.6,3.2078]
[1732890623317,2.103907,3603.0,3602.6,3.2078]
[1732890623519,2.381357,3603.0,3602.6,3.2078]
[1732890623715,2.381357,3603.0,3602.2,0.2775]
[1732890623716,0.27747,3602.7,3602.2,3.2078]
[1732890623917,2.103907,3603.0,3602.2,3.2078]
[1732890624117,2.381357,3603.0,3602.2,3.4853]
[1732890624321,2.103907,3603.0,3602.2,3.2078]
[1732890624618,2.103907,3602.6,3602.2,3.2078]
[1732890624821,1.28158,3602.5,3602.2,3.2078]
[1732890625023,0.2775,3602.4,3602.2,3.2078]
[1732890625224,0.27749,3602.4,3602.2,3.2078]
[1732890625423,0.27749,3602.4,3601.6,3.2078]
[1732890625424,1.052,3602.4,3601.6,3.2078]
[1732890625623,0.27752,3602.1,3601.6,3.2078]
[1732890625923,5.311707,3601.8,3600.7,3.2078]
[1732890626126,2.103907,3601.3,3600.7,3.48542]
[1732890626431,3.155907,3601.3,3600.7,3.48542]
[1732890626623,1.052,3601.3,3600.7,3.2078]
[1732890626824,1.052,3601.3,3601.2,3.2078]
[1732890627226,1.052,3601.3,3600.8,3.2078]
[1732890627227,3.155907,3601.3,3600.8,3.2078]
[1732890627421,3.155907,3601.3,3600.9,0.27761]
[1732890627631,1.052,3601.3,3600.9,0.27761]
[1732890627827,1.052,3601.3,3600.8,3.2078]
[1732890628424,3.155907,3601.3,3600.8,3.48541]
[1732890628616,3.155907,3601.3,3600.9,0.2776]
[1732890628821,1.021,3601.6,3601.0,0.27759]
[1732890629028,2.073,3601.6,3601.0,0.27759]
[1732890629228,2.073,3601.6,3600.8,3.2078]
[1732890629524,2.103907,3602.1,3601.5,0.27756]
[1732890629723,1.052,3602.0,3601.5,0.27756]
[1732890629920,1.32953,3602.0,3601.3,1.21387]
[1732890630125,1.052,3602.0,3601.6,0.27755]
[1732890630331,1.052,3602.0,3601.6,3.48535]
[1732890630531,1.052,3602.0,3601.6,3.2078]
[1732890630831,3.155907,3602.1,3601.6,3.2078]
[1732890631127,3.433427,3602.1,3601.6,3.2078]
[1732890631323,1.052,3602.1,3601.8,0.27754]
[1732890631523,1.26562917,3602.3,3601.8,0.27753]
[1732890631832,2.103907,3602.1,3601.6,3.48535]
[1732890632020,2.103907,3601.7,3601.2,3.2078]
[1732890632225,2.103907,3601.7,3599.8,2.38163076]
[1732890632226,2.103907,3601.3,3600.8,3.2078]
[1732890632527,2.103907,3600.9,3600.8,3.2078]
[1732890633533,5.3044,3601.6,3600.8,3.2078]
[1732890633727,1.052,3601.6,3601.2,3.2078]
[1732890633928,2.381457,3601.7,3601.2,3.2078]
[1732890634132,2.381457,3601.7,3601.3,0.27757]
[1732890634133,2.103907,3601.7,3601.3,0.27757]
[1732890634327,3.433387,3602.5,3601.9,0.27753]
[1732890634525,3.155907,3602.5,3601.6,3.2078]
[1732890634722,2.103907,3602.1,3601.6,3.2078]
[1732890635323,2.103907,3602.1,3601.8,0.27753]
[1732890635532,2.103907,3602.1,3601.6,3.48535]
[1732890635830,2.103907,3602.1,3601.7,0.27754]
[1732890636525,2.103907,3602.1,3601.6,3.2078]
[1732890636726,2.103907,3602.1,3601.7,0.27755]
[1732890636921,0.27752,3602.0,3601.6,3.2078]
[1732890637227,1.052,3602.4,3601.2,1.0284]
[1732890637228,0.27756,3601.6,3601.2,1.0284]
[1732890637944,0.27755,3601.7,3601.2,1.0284]
[1732890638128,0.27756,3601.6,3601.2,1.0284]
[1732890638431,2.94312014,3601.8,3601.2,1.30598]
[1732890638632,0.27755,3601.7,3601.2,1.0284]
[1732890638925,0.27775694,3602.6,3601.6,3.2078]
[1732890639134,16.81056781,3603.7,3602.4,3.2078]
[1732890639320,0.27739,3603.7,3603.0,0.27744]
[1732890639520,2.66558014,3603.7,3602.9,3.2078]
[1732890639722,2.94298014,3603.7,3603.3,3.2078]
[1732890639937,2.66558014,3603.7,3603.3,3.2078]
[1732890640326,2.94297014,3603.7,3603.0,0.27744]
[1732890640725,2.66558014,3603.7,3603.1,0.27743]
[1732890641127,2.66558014,3603.7,3603.2,0.27743]
[1732890641333,2.34489745,3604.1,3603.4,3.2078]
[1732890641633,2.94291014,3604.5,3602.7,2.66558014]
[1732890641634,2.66558014,3604.5,3603.8,3.2078]
[1732890641828,0.27735,3604.3,3603.8,3.2078]
[1732890642226,2.66558014,3604.5,3603.8,3.2078]
[1732890642429,2.66558014,3604.5,3603.8,3.48518]
[1732890642430,2.94291014,3604.5,3603.8,3.48518]
[1732890642630,0.27736,3604.2,3603.8,3.2078]
[1732890642925,2.66558014,3604.5,3603.8,3.2078]
[1732890642926,0.27734,3604.4,3603.8,3.2078]
[1732890643130,2.66558014,3604.1,3603.8,3.2078]
[1732890643330,3.2078,3603.9,3603.2,3.2078]
[1732890643530,2.66558014,3604.0,3603.3,0.27742]
[1732890643733,3.2078,3604.3,3603.6,3.48519]
[1732890644027,2.66558014,3604.4,3603.6,3.2078]
[1732890644228,2.94295014,3604.0,3603.6,3.2078]
[1732890644535,2.66558014,3604.0,3603.6,3.2078]
[1732890644835,2.66558014,3604.0,3603.0,3.2078]
[1732890645031,2.66558014,3604.0,3603.1,0.27744]
[1732890645231,2.66558014,3604.0,3603.5,3.2078]
[1732890645430,3.2078,3603.7,3603.1,3.2078]
[1732890645631,2.66558014,3604.0,3603.1,3.2078]
[1732890645632,1.0011,3603.9,3603.1,3.2078]
[1732890645828,5.87338014,3603.6,3602.6,3.2078]
[1732890646032,0.27745,3603.0,3602.6,3.2078]
[1732890646427,2.66558014,3603.2,3602.5,1.0228]
[1732890646631,1.27854,3603.1,3602.5,3.2078]
[1732890646828,1.0011,3603.1,3602.5,3.2078]
[1732890647031,0.27746,3602.9,3602.5,3.2078]
[1732890647233,0.27746,3602.9,3602.2,0.9982]
[1732890647234,2.66558014,3602.8,3602.1,3.2078]
[1732890647426,0.27747,3602.7,3602.1,3.2078]
[1732890647633,1.111,3602.7,3602.1,3.2078]
[1732890647836,0.27748,3602.6,3602.1,3.2078]
[1732890648231,1.111,3602.7,3602.1,3.2078]
[1732890648440,0.2775,3602.3,3602.1,3.2078]
[1732890648841,0.27749,3602.4,3602.1,3.2078]
[1732890649039,1.111,3602.7,3602.1,3.2078]
[1732890649235,0.2775,3602.3,3602.1,3.2078]
[1732890649639,2.66558014,3602.4,3601.7,4.2331]
[1732890649834,2.66558014,3602.4,3601.6,0.9982]
[1732890649835,0.27751,3602.2,3601.6,0.9982]
[1732890650037,2.66558014,3602.4,3601.6,0.9982]
[1732890650233,2.66558014,3602.0,3601.3,3.2078]
[1732890650538,2.94314014,3601.6,3600.9,4.4395]
[1732890650740,0.27758,3601.2,3600.9,4.1619]
[1732890651044,0.27758,3601.3,3600.9,4.1619]
[1732890651238,1.0147,3602.3,3600.9,4.1619]
[1732890651434,0.27755,3601.7,3601.4,3.2078]
[1732890651641,0.27755,3601.7,3601.0,3.2078]
[1732890651840,0.27753,3602.0,3601.0,8.2078]
[1732890652042,3.2078,3602.1,3601.2,0.27758]
[1732890652248,2.66558014,3602.0,3601.0,3.2078]
[1732890652545,0.27756,3601.5,3601.0,3.2078]
[1732890653341,1.0416,3601.9,3601.0,3.2078]
[1732890653342,1.111,3601.8,3601.0,3.2078]
[1732890653545,0.27757,3601.4,3601.0,3.2078]
[1732890653848,1.111,3601.8,3601.0,3.2078]
[1732890654138,0.27759,3601.1,3601.0,3.2078]
[1732890654341,2.66558014,3601.6,3601.0,3.2078]
[1732890654640,0.27759,3601.2,3601.0,3.2078]
[1732890654945,3.64988014,3601.6,3601.0,3.2078]
[1732890655335,0.27758,3601.3,3601.0,3.2078]
[1732890655742,0.27758,3601.2,3601.0,3.2078]
[1732890655939,3.64988014,3601.6,3601.0,3.2078]
[1732890656144,0.27758,3601.3,3601.0,3.2078]
[1732890656553,3.64988014,3601.6,3601.0,3.2078]
[1732890656846,0.27757,3601.4,3601.0,3.2078]
[1732890657141,3.64988014,3601.6,3601.0,3.2078]
[1732890657142,0.27759,3601.1,3601.0,3.2078]
[1732890657638,3.64988014,3601.6,3601.0,3.2078]
[1732890657845,0.27757,3601.4,3601.0,3.2078]
[1732890658046,0.27758,3601.3,3601.0,3.2078]
[1732890658342,1.0416,3601.9,3601.0,8.2578]
[1732890658645,1.111,3602.2,3601.7,3.2078]
[1732890658846,0.27751,3602.1,3601.7,3.2078]
[1732890659042,0.27753,3601.9,3601.7,3.2078]
[1732890659740,1.111,3602.2,3601.7,3.2078]
[1732890659947,1.9714,3602.4,3602.1,3.2078]
[1732890660142,3.2078,3602.9,3602.1,3.2078]
[1732890660339,10.29677616,3603.4,3602.7,3.2078]
[1732890660340,1.111,3603.4,3602.7,3.2078]
[1732890660536,1.111,3603.4,3602.2,0.9798]
[1732890660537,1.111,3603.4,3603.1,3.2078]
[1732890660742,2.66558014,3603.8,3603.1,3.2078]
[1732890660944,0.27741,3603.5,3603.1,3.2078]
[1732890661245,3.2078,3604.0,3603.1,3.2078]
[1732890661446,8.32452602,3604.5,3603.9,3.2078]
[1732890661447,0.27733,3604.5,3603.9,3.2078]
[1732890661748,2.94341194,3604.6,3603.9,3.2078]
[1732890661956,0.27737,3604.0,3603.9,3.2078]
[1732890662141,6.15121194,3604.6,3603.9,3.2078]
[1732890662451,0.27734,3604.4,3603.9,3.2078]
[1732890662647,2.94341194,3604.6,3603.9,3.2078]
[1732890662648,0.27736,3604.2,3603.9,3.2078]
[1732890662844,2.94341194,3604.6,3603.9,3.2078]
[1732890663044,0.27736,3604.2,3603.9,3.2078]
[1732890663253,0.2778318,3604.6,3604.0,0.27737]
[1732890663550,0.27732,3604.6,3603.9,3.48518]
[1732890663950,0.27735,3604.3,3603.9,3.2078]
[1732890664153,5.55250551,3604.7,3603.9,3.2078]
[1732890664447,5.82982551,3604.7,3604.0,0.27736]
[1732890664654,5.82982551,3604.7,3603.9,3.2078]
[1732890664655,0.27732,3604.6,3603.9,3.2078]
[1732890664852,0.2778318,3605.4,3604.5,0.27732]
[1732890665044,0.69306,3606.0,3605.0,3.2078]
[1732890665045,6.51379165,3605.5,3605.0,3.2078]
[1732890665245,6.79099165,3606.2,3605.4,3.48506]
[1732890665451,0.27719,3606.4,3605.4,3.2078]
[1732890665756,2.66558014,3606.5,3605.8,3.2078]
[1732890665957,0.27717,3606.6,3605.8,3.2078]
[1732890666257,2.66558014,3606.5,3605.8,3.2078]
[1732890666551,1.0607,3606.8,3606.2,3.2078]
[1732890667054,0.27764127,3606.7,3606.2,3.2078]
[1732890667243,2.66558014,3606.9,3606.2,3.2078]
[1732890667645,0.27717,3606.7,3606.2,3.2078]
[1732890667847,2.66558014,3606.9,3606.2,3.2078]
[1732890668049,3.2078,3606.8,3606.2,3.2078]
[1732890668251,3.2078,3606.8,3605.7,3.2078]
[1732890668252,3.2078,3606.4,3605.7,3.2078]
[1732890668747,0.27722,3606.0,3605.7,3.2078]
[1732890668953,2.66558014,3606.1,3605.2,3.2078]
[1732890669148,0.27723,3605.9,3605.2,3.2078]
[1732890669458,2.66558014,3606.1,3605.2,3.2078]
[1732890670557,2.69558014,3606.1,3605.2,3.2078]
[1732890670753,0.27723,3605.8,3605.2,3.2078]
[1732890671054,2.69558014,3606.1,3605.2,3.2078]
[1732890671055,2.66558014,3606.1,3605.2,3.2078]
[1732890671249,2.70558014,3606.1,3605.2,3.2078]
[1732890671855,0.27723,3605.9,3605.2,3.2078]
[1732890672260,2.66558014,3606.1,3605.2,3.2078]
[1732890672451,0.11,3606.1,3605.7,3.2078]
[1732890672655,2.94322141,3606.9,3605.7,3.2078]
[1732890672960,2.94322141,3606.9,3606.1,3.2078]
[1732890672961,3.66322141,3606.9,3606.1,3.2078]
[1732890673154,3.66322141,3606.9,3606.5,3.2078]
[1732890673559,0.99764127,3606.9,3606.5,3.2078]
[1732890673872,0.27764127,3606.9,3606.5,3.2078]
[1732890674158,0.27713,3607.1,3606.5,3.2078]
[1732890674356,0.89713,3607.1,3606.5,3.2078]
[1732890674661,0.9988,3607.2,3606.5,3.2078]
[1732890674848,1.2588,3607.2,3606.5,3.2078]
[1732890675048,1.2588,3607.2,3606.5,3.48497]
[1732890675254,1.2588,3607.2,3606.5,3.2078]
[1732890675753,1.53593,3607.2,3606.5,3.2078]
[1732890675954,0.27714,3607.1,3606.5,3.2078]
[1732890676158,0.9988,3607.2,3606.5,3.2078]
[1732890676356,0.27715,3606.9,3606.5,3.2078]
[1732890676563,1.8588,3607.2,3606.5,3.2078]
[1732890676564,0.9988,3607.2,3606.5,3.2078]
[1732890676760,0.9988,3607.2,3606.1,3.2078]